fUST/lending_fUST_20241115
["ID","MTS","AMOUNT","RATE_DAILY","PERIOD"]
[342231185,1731604239497,-539.76,0.00016438,2]
[342231186,1731604239508,-500.0,0.00016438,2]
[342231187,1731604239517,-500.0,0.00016438,2]
[342231188,1731604239526,-500.0,0.00016438,2]
[342231189,1731604239536,-593.22,0.00016438,2]
[342231190,1731604239544,-791.95,0.00016438,2]
[342231191,1731604239553,-500.0,0.00016438,2]
[342231192,1731604239563,-500.0,0.00016438,2]
[342231193,1731604239572,-500.0,0.00016438,2]
[342231194,1731604239582,-500.0,0.00016438,2]
[342231195,1731604239592,-620.07,0.00016438,2]
[342231196,1731604239601,-500.0,0.00016438,2]
[342231197,1731604239610,-561.81775729,0.00016438,2]
[342231198,1731604239628,-500.3693891,0.00016438,2]
[342231199,1731604239638,-110.57149388,0.00016438,2]
[342231226,1731604243449,-389.42850612,0.00016438,2]
[342231227,1731604243459,-500.0,0.00016438,2]
[342231228,1731604243468,-500.0,0.00016438,2]
[342231229,1731604243477,-514.37776422,0.00016438,2]
[342231230,1731604243487,-500.0,0.00016438,2]
[342231231,1731604243496,-195.43741603,0.00016438,2]
[342231232,1731604243509,-304.56258397,0.00016438,2]
[342231233,1731604243519,-500.0,0.00016438,2]
[342231234,1731604243528,-500.0,0.00016438,2]
[342231235,1731604243538,-441.75907152,0.00016438,2]
[342231236,1731604243548,-500.0,0.00016438,2]
[342231237,1731604243557,-500.0,0.00016438,2]
[342231238,1731604243567,-621.97,0.00016438,2]
[342231239,1731604243576,-500.0,0.00016438,2]
[342231240,1731604243585,-500.0,0.00016438,2]
[342231241,1731604243595,-500.0,0.00016438,2]
[342231242,1731604243604,-500.0,0.00016438,2]
[342231243,1731604243616,-500.0,0.00016438,2]
[342231244,1731604243626,-500.0,0.00016438,2]
[342231246,1731604243635,-1988.75,0.00016438,2]
[342231247,1731604243644,-500.0,0.00016438,2]
[342231248,1731604243654,-500.0,0.00016438,2]
[342231249,1731604243664,-562.66,0.00016438,2]
[342231250,1731604243673,-500.0,0.00016438,2]
[342231251,1731604243683,-702.48,0.00016438,2]
[342231252,1731604243695,-500.0,0.00016438,2]
[342231253,1731604243705,-362.69034507,0.00016438,2]
[342231254,1731604243715,-500.0,0.00016438,2]
[342231255,1731604243725,-500.0,0.00016438,2]
[342231256,1731604243735,-500.0,0.00016438,2]
[342231257,1731604243745,-500.0,0.00016438,2]
[342231258,1731604243754,-500.0,0.00016438,2]
[342231259,1731604243764,-964.37,0.00016438,2]
[342231260,1731604243774,-500.0,0.00016438,2]
[342231261,1731604243785,-500.0,0.00016438,2]
[342231262,1731604243795,-566.4,0.00016438,2]
[342231263,1731604243804,-540.9,0.00016438,2]
[342231264,1731604243814,-500.0,0.00016438,2]
[342231265,1731604243824,-1120.48,0.00016438,2]
[342231266,1731604243833,-2047.56,0.00016438,2]
[342231267,1731604243843,-500.0,0.00016438,2]
[342231268,1731604243852,-500.0,0.00016438,2]
[342231269,1731604243865,-500.0,0.00016438,2]
[342231270,1731604243875,-500.0,0.00016438,2]
[342231271,1731604243884,-738.74,0.00016438,2]
[342231272,1731604243893,-500.0,0.00016438,2]
[342231273,1731604243903,-500.0,0.00016438,2]
[342231274,1731604243912,-500.0,0.00016438,2]
[342231275,1731604243922,-1536.66,0.00016438,2]
[342231276,1731604243932,-1297.39,0.00016438,2]
[342231277,1731604243942,-676.55,0.00016438,2]
[342231278,1731604243952,-500.0,0.00016438,2]
[342231279,1731604243962,-500.0,0.00016438,2]
[342231280,1731604243972,-500.0,0.00016438,2]
[342231281,1731604243982,-179.62230885,0.00016438,2]
[342231282,1731604243996,-500.0,0.00016438,2]
[342231283,1731604244006,-516.02752456,0.00016438,2]
[342231284,1731604244016,-500.0,0.00016438,2]
[342231285,1731604244026,-701.45,0.00016438,2]
[342231286,1731604244035,-500.0,0.00016438,2]
[342231287,1731604244045,-150.12912762,0.00016438,2]
[342231288,1731604244055,-500.0,0.00016438,2]
[342231289,1731604244065,-738.72,0.00016438,2]
[342231290,1731604244075,-500.0,0.00016438,2]
[342231291,1731604244084,-1450.79,0.00016438,2]
[342231292,1731604244096,-500.0,0.00016438,2]
[342231293,1731604244105,-500.0,0.00016438,2]
[342231294,1731604244271,-500.0,0.00016438,2]
[342231295,1731604244282,-500.0,0.00016438,2]
[342231296,1731604244292,-500.0,0.00016438,2]
[342231297,1731604244301,-500.0,0.00016438,2]
[342231298,1731604244311,-861.15,0.00016438,2]
[342231299,1731604244320,-500.0,0.00016438,2]
[342231300,1731604244331,-500.0,0.00016438,2]
[342231301,1731604244340,-514.29422425,0.00016438,2]
[342231302,1731604244350,-500.0,0.00016438,2]
[342231303,1731604244360,-500.0,0.00016438,2]
[342231304,1731604244372,-569.37,0.00016438,2]
[342231305,1731604244382,-500.0,0.00016438,2]
[342231306,1731604244392,-942.47,0.00016438,2]
[342231307,1731604244401,-16122.02,0.00016438,2]
[342231308,1731604244411,-500.0,0.00016438,2]
[342231309,1731604244420,-500.0,0.00016438,2]
[342231310,1731604244430,-500.0,0.00016438,2]
[342231311,1731604244439,-500.0,0.00016438,2]
[342231312,1731604244449,-500.0,0.00016438,2]
[342231313,1731604244459,-654.95,0.00016438,2]
[342231314,1731604244468,-500.0,0.00016438,2]
[342231315,1731604244477,-1581.97,0.00016438,2]
[342231316,1731604244487,-500.0,0.00016438,2]
[342231317,1731604244497,-1369.16,0.00016438,2]
[342231318,1731604244506,-500.0,0.00016438,2]
[342231319,1731604244516,-500.0,0.00016438,2]
[342231320,1731604244525,-500.0,0.00016438,2]
[342231321,1731604244534,-500.0,0.00016438,2]
[342231322,1731604244544,-500.0,0.00016438,2]
[342231323,1731604244554,-500.0,0.00016438,2]
[342231324,1731604244564,-500.0,0.00016438,2]
[342231325,1731604244574,-500.0,0.00016438,2]
[342231326,1731604244583,-500.0,0.00016438,2]
[342231327,1731604244592,-642.0,0.00016438,2]
[342231328,1731604244603,-500.0,0.00016438,2]
[342231329,1731604244612,-500.0,0.00016438,2]
[342231330,1731604244628,-500.0,0.00016438,2]
[342231331,1731604244638,-500.0,0.00016438,2]
[342231332,1731604244647,-500.0,0.00016438,2]
[342231333,1731604244657,-500.0,0.00016438,2]
[342231334,1731604244666,-744.51,0.00016438,2]
[342231335,1731604244676,-500.0,0.00016438,2]
[342231336,1731604244689,-500.0,0.00016438,2]
[342231337,1731604244701,-778.17,0.00016438,2]
[342231338,1731604244710,-500.0,0.00016438,2]
[342231339,1731604244719,-500.0,0.00016438,2]
[342231340,1731604244731,-500.0,0.00016438,2]
[342231341,1731604244741,-500.0,0.00016438,2]
[342231342,1731604244751,-500.0,0.00016438,2]
[342231343,1731604244761,-2106.02,0.00016438,2]
[342231344,1731604244775,-1168.19,0.00016438,2]
[342231345,1731604244784,-500.0,0.00016438,2]
[342231346,1731604244794,-185.96900045,0.00016438,2]
[342231347,1731604244809,-314.03099955,0.00016438,2]
[342231348,1731604244818,-787.76,0.00016438,2]
[342231349,1731604244828,-500.0,0.00016438,2]
[342231350,1731604244837,-588.77,0.00016438,2]
[342231351,1731604244847,-1238.56,0.00016438,2]
[342231352,1731604244856,-500.0,0.00016438,2]
[342231353,1731604244870,-500.0,0.00016438,2]
[342231354,1731604244879,-500.0,0.00016438,2]
[342231355,1731604244889,-544.86,0.00016438,2]
[342231356,1731604244898,-522.03563884,0.00016438,2]
[342231357,1731604244907,-500.0,0.00016438,2]
[342231358,1731604244916,-824.12,0.00016438,2]
[342231359,1731604244927,-439.92033289,0.00016438,2]
[342231360,1731604244936,-1552.09,0.00016438,2]
[342231361,1731604244946,-816.05,0.00016438,2]
[342231362,1731604244955,-512.97,0.00016438,2]
[342231363,1731604244965,-500.0,0.00016438,2]
[342231364,1731604244974,-630.61,0.00016438,2]
[342231365,1731604244983,-500.0,0.00016438,2]
[342231366,1731604244992,-500.0,0.00016438,2]
[342231367,1731604245001,-244.66255451,0.00016438,2]
[342231368,1731604245010,-500.0,0.00016438,2]
[342231369,1731604245019,-596.85,0.00016438,2]
[342231370,1731604245029,-500.0,0.00016438,2]
[342231371,1731604245037,-500.0,0.00016438,2]
[342231372,1731604245047,-6766.41,0.00016438,2]
[342231373,1731604245056,-500.0,0.00016438,2]
[342231374,1731604245066,-500.0,0.00016438,2]
[342231375,1731604245075,-3810.87,0.00016438,2]
[342231376,1731604245085,-695.33,0.00016438,2]
[342231377,1731604245094,-500.0,0.00016438,2]
[342231378,1731604245103,-500.0,0.00016438,2]
[342231379,1731604245113,-500.0,0.00016438,2]
[342231380,1731604245125,-576.84681011,0.00016438,2]
[342231381,1731604245133,-169.49058404,0.00016438,2]
[342231382,1731604245142,-500.0,0.00016438,2]
[342231383,1731604245151,-500.0,0.00016438,2]
[342231384,1731604245160,-500.0,0.00016438,2]
[342231385,1731604245171,-500.0,0.00016438,2]
[342231386,1731604245181,-3742.74,0.00016438,2]
[342231387,1731604245190,-500.0,0.00016438,2]
[342231388,1731604245200,-548.05094948,0.00016438,2]
[342231389,1731604245209,-602.95,0.00016438,2]
[342231390,1731604245219,-1768.36,0.00016438,2]
[342231391,1731604245228,-500.0,0.00016438,2]
[342231392,1731604245238,-939.17,0.00016438,2]
[342231393,1731604245247,-750.55,0.00016438,2]
[342231394,1731604245256,-500.0,0.00016438,2]
[342231395,1731604245265,-642.19,0.00016438,2]
[342231396,1731604245275,-684.62,0.00016438,2]
[342231397,1731604245284,-909.01,0.00016438,2]
[342231398,1731604245294,-500.0,0.00016438,2]
[342231399,1731604245304,-500.0,0.00016438,2]
[342231400,1731604245313,-500.0,0.00016438,2]
[342231401,1731604245323,-5409.02,0.00016438,2]
[342231402,1731604245332,-1000.0,0.00016438,2]
[342231403,1731604245341,-92.94948653,0.00016438,2]
[342231404,1731604245358,-407.05051347,0.00016438,2]
[342231405,1731604245372,-500.0,0.00016438,2]
[342231406,1731604245382,-500.0,0.00016438,2]
[342231407,1731604245391,-762.47,0.00016438,2]
[342231408,1731604245401,-500.0,0.00016438,2]
[342231409,1731604245410,-500.0,0.00016438,2]
[342231410,1731604245420,-500.0,0.00016438,2]
[342231411,1731604245430,-4765.94157025,0.00016438,2]
[342231425,1731604606922,1000.0,0.00027,60]
[342231426,1731604609782,1000.0,0.00027,65]
[342231427,1731604612566,1000.0,0.00027,70]
[342231428,1731604614968,1000.0,0.00027,75]
[342231429,1731604640730,323.966,0.00027,60]
[342231443,1731605329342,150.0,0.0002102,62]
[342231468,1731605432367,-358.084627,0.00013973,2]
[342231469,1731605432378,-300.0,0.00014772,2]
[342231470,1731605432387,-300.0,0.00014772,2]
[342231471,1731605432396,-660.19678988,0.00014773,2]
[342231472,1731605432409,-1777.72,0.00014773,2]
[342231473,1731605432421,-20701.80036012,0.00014773,2]
[342231474,1731605432430,-593.45527056,0.00014802,2]
[342231475,1731605432439,-1353.246931,0.0001481,2]
[342231476,1731605432449,-248.0535565,0.00014902,2]
[342231477,1731605432458,-203.768825,0.00014943,2]
[342231478,1731605432467,-506.64042,0.00015074,2]
[342231479,1731605432476,-250.0,0.0001519,2]
[342231480,1731605432486,-173.5066746,0.00015599,2]
[342231481,1731605432498,-420.0,0.00016171,2]
[342231482,1731605432507,-687.66324285,0.00016238,2]
[342231483,1731605432517,-420.0,0.00016249,2]
[342231484,1731605432526,-687.66324282,0.00016263,2]
[342231485,1731605432535,-687.66324282,0.00016288,2]
[342231486,1731605432544,-687.66324282,0.00016313,2]
[342231487,1731605432554,-500.0,0.00016337,2]
[342231488,1731605432563,-367.90639152,0.00016337,2]
[342231489,1731605432573,-182.69144173,0.00016337,2]
[342231490,1731605432582,-687.66324282,0.00016338,2]
[342231491,1731605432591,-135686.06528593,0.00016338,2]
[342231492,1731605432600,-1000.0,0.00016338,2]
[342231493,1731605432609,-8078.35158196,0.00016436,2]
[342231494,1731605432618,-198.53358853,0.00016437,2]
[342231495,1731605432627,-228.23597833,0.00016437,2]
[342231496,1731605432637,-518.61356208,0.00016437,2]
[342231497,1731605432646,-500.0,0.00016438,2]
[342231498,1731605432655,-500.0,0.00016438,2]
[342231499,1731605432664,-500.0,0.00016438,2]
[342231500,1731605432673,-538.16940054,0.00016438,2]
[342231501,1731605432682,-516.40141174,0.00016438,2]
[342231502,1731605432691,-513.56965262,0.00016438,2]
[342231503,1731605432700,-502.15316848,0.00016438,2]
[342231504,1731605432709,-500.0,0.00016438,2]
[342231505,1731605432718,-500.0,0.00016438,2]
[342231506,1731605432727,-500.0,0.00016438,2]
[342231507,1731605432736,-500.0,0.00016438,2]
[342231508,1731605432747,-500.0,0.00016438,2]
[342231509,1731605432756,-163.64874124,0.00016438,2]
[342231510,1731605432764,-500.0,0.00016438,2]
[342231511,1731605432773,-500.0,0.00016438,2]
[342231512,1731605432782,-500.0,0.00016438,2]
[342231513,1731605432792,-544.55089508,0.00016438,2]
[342231514,1731605432800,-500.0,0.00016438,2]
[342231515,1731605432810,-500.0,0.00016438,2]
[342231516,1731605432820,-500.0,0.00016438,2]
[342231517,1731605432829,-500.0,0.00016438,2]
[342231518,1731605432839,-502.48448002,0.00016438,2]
[342231519,1731605432849,-500.0,0.00016438,2]
[342231520,1731605432858,-500.0,0.00016438,2]
[342231521,1731605432868,-544.88293281,0.00016438,2]
[342231522,1731605432877,-500.0,0.00016438,2]
[342231523,1731605432887,-500.0,0.00016438,2]
[342231524,1731605432897,-500.0,0.00016438,2]
[342231525,1731605432906,-534.3205922,0.00016438,2]
[342231526,1731605432915,-500.0,0.00016438,2]
[342231527,1731605432924,-500.0,0.00016438,2]
[342231528,1731605432933,-500.0,0.00016438,2]
[342231529,1731605432943,-500.0,0.00016438,2]
[342231530,1731605432952,-500.0,0.00016438,2]
[342231531,1731605432962,-500.0,0.00016438,2]
[342231532,1731605432972,-500.0,0.00016438,2]
[342231533,1731605432981,-502.90424388,0.00016438,2]
[342231534,1731605432990,-152.15947373,0.00016438,2]
[342231535,1731605433005,-500.0,0.00016438,2]
[342231536,1731605433014,-500.0,0.00016438,2]
[342231537,1731605433024,-500.0,0.00016438,2]
[342231538,1731605433033,-500.0,0.00016438,2]
[342231539,1731605433043,-500.0,0.00016438,2]
[342231540,1731605433052,-500.0,0.00016438,2]
[342231541,1731605433064,-500.0,0.00016438,2]
[342231542,1731605433074,-500.0,0.00016438,2]
[342231543,1731605433083,-500.0,0.00016438,2]
[342231544,1731605433093,-500.0,0.00016438,2]
[342231545,1731605433103,-500.0,0.00016438,2]
[342231546,1731605433113,-500.0,0.00016438,2]
[342231547,1731605433123,-500.0,0.00016438,2]
[342231548,1731605433132,-500.0,0.00016438,2]
[342231549,1731605433141,-500.0,0.00016438,2]
[342231550,1731605433153,-500.0,0.00016438,2]
[342231551,1731605433164,-500.0,0.00016438,2]
[342231552,1731605433174,-500.0,0.00016438,2]
[342231553,1731605433184,-500.0,0.00016438,2]
[342231554,1731605433194,-500.0,0.00016438,2]
[342231555,1731605433204,-500.0,0.00016438,2]
[342231556,1731605433214,-500.0,0.00016438,2]
[342231557,1731605433223,-500.0,0.00016438,2]
[342231558,1731605433233,-500.0,0.00016438,2]
[342231559,1731605433246,-522.99057373,0.00016438,2]
[342231560,1731605433256,-500.0,0.00016438,2]
[342231561,1731605433266,-500.0,0.00016438,2]
[342231562,1731605433276,-500.0,0.00016438,2]
[342231563,1731605433286,-500.0,0.00016438,2]
[342231564,1731605433296,-500.0,0.00016438,2]
[342231565,1731605433307,-500.0,0.00016438,2]
[342231566,1731605433316,-500.0,0.00016438,2]
[342231567,1731605433326,-500.0,0.00016438,2]
[342231568,1731605433336,-500.0,0.00016438,2]
[342231569,1731605433345,-500.0,0.00016438,2]
[342231570,1731605433355,-500.0,0.00016438,2]
[342231571,1731605433364,-500.0,0.00016438,2]
[342231572,1731605433374,-500.0,0.00016438,2]
[342231573,1731605433384,-200.0,0.00016438,2]
[342231574,1731605433394,-500.0,0.00016438,2]
[342231575,1731605433403,-500.0,0.00016438,2]
[342231576,1731605433413,-500.0,0.00016438,2]
[342231577,1731605433423,-500.0,0.00016438,2]
[342231578,1731605433432,-518.34173318,0.00016438,2]
[342231579,1731605433441,-500.0,0.00016438,2]
[342231580,1731605433451,-500.0,0.00016438,2]
[342231581,1731605433461,-503.52521314,0.00016438,2]
[342231582,1731605433470,-500.0,0.00016438,2]
[342231583,1731605433480,-511.35399698,0.00016438,2]
[342231584,1731605433490,-527.09213316,0.00016438,2]
[342231585,1731605433502,-500.0,0.00016438,2]
[342231586,1731605433512,-500.0,0.00016438,2]
[342231587,1731605433522,-500.0,0.00016438,2]
[342231588,1731605433532,-500.0,0.00016438,2]
[342231589,1731605433542,-500.0,0.00016438,2]
[342231590,1731605433552,-500.0,0.00016438,2]
[342231591,1731605433561,-500.0,0.00016438,2]
[342231592,1731605433571,-172.31773014,0.00016438,2]
[342231593,1731605433581,-589.69856728,0.00016438,2]
[342231594,1731605433591,-506.97603242,0.00016438,2]
[342231595,1731605433601,-500.0,0.00016438,2]
[342231596,1731605433610,-500.0,0.00016438,2]
[342231597,1731605433620,-500.0,0.00016438,2]
[342231598,1731605433630,-500.0,0.00016438,2]
[342231599,1731605433639,-577.55268064,0.00016438,2]
[342231600,1731605433649,-500.0,0.00016438,2]
[342231601,1731605433659,-244.2468777,0.00016438,2]
[342231602,1731605433669,-511.47453655,0.00016438,2]
[342231604,1731605433678,-513.76268583,0.00016438,2]
[342231606,1731605433688,-500.0,0.00016438,2]
[342231608,1731605433698,-500.0,0.00016438,2]
[342231610,1731605433708,-311.57421566,0.00016438,2]
[342231611,1731605433717,-500.0,0.00016438,2]
[342231613,1731605433728,-500.0,0.00016438,2]
[342231615,1731605433737,-500.0,0.00016438,2]
[342231618,1731605433750,-500.0,0.00016438,2]
[342231620,1731605433760,-398.43083267,0.00016438,2]
[342231622,1731605433770,-500.0,0.00016438,2]
[342231624,1731605433781,-734.73,0.00016438,2]
[342231625,1731605433790,-501.80476118,0.00016438,2]
[342231627,1731605433800,-500.0,0.00016438,2]
[342231630,1731605433810,-508.32942207,0.00016438,2]
[342231632,1731605433820,-500.0,0.00016438,2]
[342231634,1731605433830,-500.0,0.00016438,2]
[342231635,1731605433840,-500.0,0.00016438,2]
[342231637,1731605433849,-585.44276714,0.00016438,2]
[342231639,1731605433859,-500.0,0.00016438,2]
[342231641,1731605433869,-500.0,0.00016438,2]
[342231643,1731605433878,-618.55851878,0.00016438,2]
[342231645,1731605433888,-631.87873895,0.00016438,2]
[342231647,1731605433897,-500.0,0.00016438,2]
[342231649,1731605433906,-500.0,0.00016438,2]
[342231651,1731605433916,-786.04,0.00016438,2]
[342231653,1731605433925,-500.0,0.00016438,2]
[342231655,1731605433934,-500.0,0.00016438,2]
[342231657,1731605433943,-500.0,0.00016438,2]
[342231659,1731605433953,-500.0,0.00016438,2]
[342231661,1731605433962,-500.0,0.00016438,2]
[342231663,1731605433972,-500.0,0.00016438,2]
[342231665,1731605433982,-500.0,0.00016438,2]
[342231667,1731605433994,-500.0,0.00016438,2]
[342231669,1731605434004,-500.0,0.00016438,2]
[342231671,1731605434015,-324.32561382,0.00016438,2]
[342231673,1731605434026,-500.0,0.00016438,2]
[342231675,1731605434035,-500.0,0.00016438,2]
[342231677,1731605434046,-500.0,0.00016438,2]
[342231678,1731605434056,-500.0,0.00016438,2]
[342231679,1731605434069,-500.0,0.00016438,2]
[342231681,1731605434078,-500.0,0.00016438,2]
[342231682,1731605434088,-500.0,0.00016438,2]
[342231684,1731605434099,-500.0,0.00016438,2]
[342231685,1731605434110,-557.55525584,0.00016438,2]
[342231686,1731605434120,-500.0,0.00016438,2]
[342231687,1731605434130,-500.0,0.00016438,2]
[342231688,1731605434141,-500.0,0.00016438,2]
[342231689,1731605434151,-500.0,0.00016438,2]
[342231690,1731605434161,-500.0,0.00016438,2]
[342231691,1731605434171,-500.0,0.00016438,2]
[342231692,1731605434181,-377.60866993,0.00016438,2]
[342231693,1731605434191,-500.0,0.00016438,2]
[342231694,1731605434200,-500.0,0.00016438,2]
[342231695,1731605434211,-500.0,0.00016438,2]
[342231696,1731605434220,-500.0,0.00016438,2]
[342231697,1731605434230,-500.0,0.00016438,2]
[342231698,1731605434243,-1000.0,0.00016438,2]
[342231699,1731605434254,-500.0,0.00016438,2]
[342231700,1731605434263,-500.0,0.00016438,2]
[342231701,1731605434273,-500.0,0.00016438,2]
[342231702,1731605434283,-500.0,0.00016438,2]
[342231703,1731605434293,-500.0,0.00016438,2]
[342231704,1731605434303,-533.927686,0.00016438,2]
[342231705,1731605434314,-559.52,0.00016438,2]
[342231706,1731605434324,-500.0,0.00016438,2]
[342231707,1731605434334,-500.0,0.00016438,2]
[342231708,1731605434344,-513.02563402,0.00016438,2]
[342231709,1731605434353,-500.0,0.00016438,2]
[342231710,1731605434364,-500.0,0.00016438,2]
[342231711,1731605434374,-500.0,0.00016438,2]
[342231712,1731605434384,-500.0,0.00016438,2]
[342231713,1731605434393,-506.70667888,0.00016438,2]
[342231714,1731605434402,-500.0,0.00016438,2]
[342231715,1731605434412,-500.0,0.00016438,2]
[342231716,1731605434422,-707.52,0.00016438,2]
[342231717,1731605434433,-500.0,0.00016438,2]
[342231718,1731605434443,-515.6276466,0.00016438,2]
[342231719,1731605434453,-3.11166738,0.00016438,2]
[342231720,1731605434641,-496.88833262,0.00016438,2]
[342231721,1731605434650,-269.56721458,0.00016438,2]
[342231747,1731605438505,-230.43278542,0.00016438,2]
[342231748,1731605438515,-500.0,0.00016438,2]
[342231749,1731605438525,-500.0,0.00016438,2]
[342231750,1731605438534,-227.91913782,0.00016438,2]
[342231751,1731605438544,-500.0,0.00016438,2]
[342231752,1731605438553,-296.04726396,0.00016438,2]
[342231781,1731605440330,-157.76466087,0.00016438,2]
[342231782,1731605440341,-500.0,0.00016438,2]
[342231783,1731605440352,-500.0,0.00016438,2]
[342231784,1731605440363,-500.0,0.00016438,2]
[342231785,1731605440372,-500.0,0.00016438,2]
[342231786,1731605440382,-876.64,0.00016438,2]
[342231787,1731605440392,-500.0,0.00016438,2]
[342231788,1731605440401,-413.00513913,0.00016438,2]
[342231790,1731605440412,-86.99486087,0.00016438,2]
[342231791,1731605440421,-500.0,0.00016438,2]
[342231793,1731605440430,-134.37498051,0.00016438,2]
[342231794,1731605440442,-382.49892055,0.00016438,2]
[342231795,1731605440451,-500.0,0.00016438,2]
[342231796,1731605440461,-500.0,0.00016438,2]
[342231797,1731605440470,-517.38271975,0.00016438,2]
[342231798,1731605440479,-500.0,0.00016438,2]
[342231799,1731605440488,-500.0,0.00016438,2]
[342231800,1731605440498,-540.96567801,0.00016438,2]
[342231801,1731605440507,-500.0,0.00016438,2]
[342231802,1731605440516,-936.58,0.00016438,2]
[342231803,1731605440525,-810.65,0.00016438,2]
[342231804,1731605440535,-500.0,0.00016438,2]
[342231805,1731605440544,-746.82,0.00016438,2]
[342231806,1731605440554,-500.0,0.00016438,2]
[342231807,1731605440563,-500.0,0.00016438,2]
[342231808,1731605440572,-500.0,0.00016438,2]
[342231809,1731605440581,-1275.63,0.00016438,2]
[342231810,1731605440591,-500.0,0.00016438,2]
[342231811,1731605440600,-500.0,0.00016438,2]
[342231812,1731605440610,-500.0,0.00016438,2]
[342231813,1731605440619,-500.0,0.00016438,2]
[342231814,1731605440628,-500.0,0.00016438,2]
[342231815,1731605440638,-500.0,0.00016438,2]
[342231816,1731605440647,-500.0,0.00016438,2]
[342231817,1731605440656,-500.0,0.00016438,2]
[342231818,1731605440665,-500.0,0.00016438,2]
[342231819,1731605440674,-500.0,0.00016438,2]
[342231820,1731605440684,-500.0,0.00016438,2]
[342231821,1731605440693,-518.37560496,0.00016438,2]
[342231822,1731605440702,-500.0,0.00016438,2]
[342231823,1731605440711,-500.0,0.00016438,2]
[342231824,1731605440720,-502.44647649,0.00016438,2]
[342231825,1731605440730,-176.46534791,0.00016438,2]
[342231826,1731605440739,-500.0,0.00016438,2]
[342231827,1731605440751,-837.9,0.00016438,2]
[342231828,1731605440760,-500.0,0.00016438,2]
[342231829,1731605440769,-500.0,0.00016438,2]
[342231830,1731605440778,-761.28,0.00016438,2]
[342231831,1731605440787,-500.0,0.00016438,2]
[342231832,1731605440796,-500.0,0.00016438,2]
[342231833,1731605440805,-628.25471463,0.00016438,2]
[342231834,1731605440814,-500.0,0.00016438,2]
[342231835,1731605440823,-500.0,0.00016438,2]
[342231836,1731605440833,-500.0,0.00016438,2]
[342231837,1731605440842,-500.0,0.00016438,2]
[342231838,1731605440851,-512.11801464,0.00016438,2]
[342231839,1731605440860,-500.0,0.00016438,2]
[342231840,1731605440869,-500.0,0.00016438,2]
[342231841,1731605440879,-500.0,0.00016438,2]
[342231842,1731605440888,-500.0,0.00016438,2]
[342231843,1731605440896,-500.0,0.00016438,2]
[342231844,1731605440906,-500.0,0.00016438,2]
[342231845,1731605440915,-694.07,0.00016438,2]
[342231846,1731605440924,-500.0,0.00016438,2]
[342231847,1731605440933,-500.0,0.00016438,2]
[342231848,1731605440942,-500.65030481,0.00016438,2]
[342231849,1731605440951,-412.86343458,0.00016438,2]
[342231850,1731605440961,-1209.65,0.00016438,2]
[342231851,1731605440970,-500.0,0.00016438,2]
[342231852,1731605440979,-500.0,0.00016438,2]
[342231853,1731605440988,-500.0,0.00016438,2]
[342231854,1731605440998,-500.0,0.00016438,2]
[342231855,1731605441007,-500.0,0.00016438,2]